fUST/lending_fUST_20250423
["ID","MTS","AMOUNT","RATE_DAILY","PERIOD"]
[358681052,1745364634594,-500.0,0.00021917,2]
[358681053,1745364634604,-500.0,0.00021917,2]
[358681054,1745364634614,-500.0,0.00021917,2]
[358681055,1745364634624,-500.0,0.00021917,2]
[358681056,1745364634637,-500.0,0.00021917,2]
[358681057,1745364634648,-500.0,0.00021917,2]
[358681058,1745364634660,-500.0,0.00021917,2]
[358681059,1745364634671,-500.0,0.00021917,2]
[358681060,1745364634682,-500.0,0.00021917,2]
[358681061,1745364634692,-500.0,0.00021917,2]
[358681062,1745364634702,-500.0,0.00021917,2]
[358681063,1745364634713,-500.0,0.00021917,2]
[358681064,1745364634723,-500.0,0.00021917,2]
[358681065,1745364634735,-500.0,0.00021917,2]
[358681066,1745364634745,-369.39568318,0.00021917,2]
[358681067,1745364634755,-500.0,0.00021917,2]
[358681068,1745364634766,-500.0,0.00021917,2]
[358681069,1745364634776,-500.0,0.00021917,2]
[358681070,1745364634786,-500.0,0.00021917,2]
[358681071,1745364634796,-500.0,0.00021917,2]
[358681072,1745364634807,-500.0,0.00021917,2]
[358681073,1745364634817,-500.0,0.00021917,2]
[358681074,1745364634828,-500.0,0.00021917,2]
[358681075,1745364634838,-500.0,0.00021917,2]
[358681076,1745364634848,-500.0,0.00021917,2]
[358681077,1745364634859,-500.0,0.00021917,2]
[358681078,1745364634869,-500.0,0.00021917,2]
[358681079,1745364634880,-500.0,0.00021917,2]
[358681080,1745364634890,-500.0,0.00021917,2]
[358681081,1745364634901,-500.0,0.00021917,2]
[358681082,1745364634912,-500.0,0.00021917,2]
[358681083,1745364634923,-500.0,0.00021917,2]
[358681084,1745364634934,-500.0,0.00021917,2]
[358681085,1745364634944,-500.0,0.00021917,2]
[358681086,1745364634954,-500.0,0.00021917,2]
[358681087,1745364634964,-500.0,0.00021917,2]
[358681088,1745364634976,-500.0,0.00021917,2]
[358681089,1745364634987,-500.0,0.00021917,2]
[358681090,1745364634998,-500.0,0.00021917,2]
[358681091,1745364635007,-500.0,0.00021917,2]
[358681092,1745364635018,-500.0,0.00021917,2]
[358681093,1745364635027,-500.0,0.00021917,2]
[358681094,1745364635037,-500.0,0.00021917,2]
[358681095,1745364635047,-500.0,0.00021917,2]
[358681096,1745364635056,-500.0,0.00021917,2]
[358681097,1745364635066,-500.0,0.00021917,2]
[358681098,1745364635076,-500.0,0.00021917,2]
[358681099,1745364635085,-500.0,0.00021917,2]
[358681100,1745364635095,-500.0,0.00021917,2]
[358681101,1745364635104,-500.0,0.00021917,2]
[358681102,1745364635114,-500.0,0.00021917,2]
[358681103,1745364635129,-1197.45,0.00021917,2]
[358681104,1745364635139,-307.47999198,0.00021917,2]
[358681105,1745364635149,-500.0,0.00021917,2]
[358681106,1745364635161,-500.0,0.00021917,2]
[358681107,1745364635171,-446.02399655,0.00021917,2]
[358681108,1745364635181,-500.0,0.00021917,2]
[358681109,1745364635191,-500.0,0.00021917,2]
[358681110,1745364635201,-500.0,0.00021917,2]
[358681111,1745364635210,-500.0,0.00021917,2]
[358681112,1745364635221,-500.0,0.00021917,2]
[358681113,1745364635231,-500.0,0.00021917,2]
[358681114,1745364635242,-500.0,0.00021917,2]
[358681115,1745364635251,-500.0,0.00021917,2]
[358681116,1745364635261,-787.51,0.00021917,2]
[358681117,1745364635272,-500.0,0.00021917,2]
[358681118,1745364635282,-358.73,0.00021917,2]
[358681119,1745364635292,-500.0,0.00021917,2]
[358681120,1745364635302,-500.0,0.00021917,2]
[358681121,1745364635312,-500.0,0.00021917,2]
[358681122,1745364635322,-218.49366928,0.00021917,2]
[358681123,1745364635332,-500.0,0.00021917,2]
[358681124,1745364635342,-500.0,0.00021917,2]
[358681125,1745364635351,-500.0,0.00021917,2]
[358681126,1745364635362,-200.28814724,0.00021917,2]
[358681127,1745364635373,-434.81,0.00021917,2]
[358681128,1745364635383,-500.0,0.00021917,2]
[358681129,1745364635394,-500.0,0.00021917,2]
[358681130,1745364635405,-509.01,0.00021917,2]
[358681131,1745364635417,-500.0,0.00021917,2]
[358681132,1745364635427,-500.0,0.00021917,2]
[358681133,1745364635438,-500.0,0.00021917,2]
[358681134,1745364635448,-496.26960928,0.00021917,2]
[358681135,1745364635459,-500.0,0.00021917,2]
[358681136,1745364635471,-510.48,0.00021917,2]
[358681137,1745364635482,-500.0,0.00021917,2]
[358681138,1745364635492,-500.0,0.00021917,2]
[358681139,1745364635502,-500.0,0.00021917,2]
[358681140,1745364635512,-500.0,0.00021917,2]
[358681141,1745364635522,-500.0,0.00021917,2]
[358681142,1745364635532,-500.0,0.00021917,2]
[358681143,1745364635542,-500.0,0.00021917,2]
[358681144,1745364635553,-500.0,0.00021917,2]
[358681145,1745364635563,-500.0,0.00021917,2]
[358681146,1745364635572,-500.0,0.00021917,2]
[358681147,1745364635582,-500.0,0.00021917,2]
[358681148,1745364635592,-500.0,0.00021917,2]
[358681149,1745364635601,-385.22300047,0.00021917,2]
[358681150,1745364635611,-500.0,0.00021917,2]
[358681151,1745364635621,-500.0,0.00021917,2]
[358681152,1745364635631,-500.0,0.00021917,2]
[358681153,1745364635641,-500.0,0.00021917,2]
[358681154,1745364635653,-500.0,0.00021917,2]
[358681155,1745364635663,-500.0,0.00021917,2]
[358681156,1745364635673,-500.0,0.00021917,2]
[358681157,1745364635683,-500.0,0.00021917,2]
[358681158,1745364635693,-500.0,0.00021917,2]
[358681159,1745364635703,-500.0,0.00021917,2]
[358681160,1745364635712,-500.0,0.00021917,2]
[358681161,1745364635722,-500.0,0.00021917,2]
[358681162,1745364635732,-634.11,0.00021917,2]
[358681163,1745364635742,-500.0,0.00021917,2]
[358681164,1745364635752,-203.46423945,0.00021917,2]
[358681165,1745364635762,-500.0,0.00021917,2]
[358681166,1745364635771,-611.67595888,0.00021917,2]
[358681167,1745364635781,-500.0,0.00021917,2]
[358681168,1745364635791,-500.0,0.00021917,2]
[358681169,1745364635802,-643.91,0.00021917,2]
[358681170,1745364635812,-500.0,0.00021973,2]
[358681171,1745364635821,-379.50764045,0.00021973,2]
[358681172,1745364635831,-556.05640354,0.00021973,2]
[358681173,1745364635841,-500.0,0.00021973,2]
[358681174,1745364635852,-500.0,0.00022191,2]
[358681175,1745364635861,-237.40981233,0.00022191,2]
[358681176,1745364635871,-500.0,0.00022191,2]
[358681177,1745364635881,-500.0,0.00022191,2]
[358681178,1745364635892,-500.0,0.00022191,2]
[358681179,1745364635905,-500.0,0.00022191,2]
[358681180,1745364635915,-500.0,0.00022191,2]
[358681181,1745364635926,-500.0,0.00022191,2]
[358681182,1745364635936,-500.0,0.00022191,2]
[358681183,1745364635947,-500.0,0.00022191,2]
[358681184,1745364635958,-500.0,0.00022191,2]
[358681185,1745364635968,-500.0,0.00022191,2]
[358681186,1745364635978,-500.0,0.00022191,2]
[358681187,1745364635988,-500.0,0.00022191,2]
[358681188,1745364635999,-500.0,0.00022191,2]
[358681189,1745364636009,-500.0,0.00022191,2]
[358681190,1745364636019,-500.0,0.00022191,2]
[358681191,1745364636029,-500.0,0.00022191,2]
[358681192,1745364636038,-500.0,0.00022191,2]
[358681193,1745364636048,-500.0,0.00022191,2]
[358681194,1745364636058,-500.0,0.00022191,2]
[358681195,1745364636067,-500.0,0.00022191,2]
[358681196,1745364636076,-500.0,0.00022191,2]
[358681197,1745364636086,-500.0,0.00022191,2]
[358681198,1745364636096,-500.0,0.00022191,2]
[358681199,1745364636106,-500.0,0.00022191,2]
[358681200,1745364636115,-201.39106559,0.00022191,2]
[358681201,1745364636125,-500.0,0.00022191,2]
[358681202,1745364636135,-598.49347541,0.00022191,2]
[358681203,1745364636145,-500.0,0.00022191,2]
[358681204,1745364636159,-500.0,0.00022191,2]
[358681205,1745364636169,-500.0,0.00022191,2]
[358681206,1745364636179,-500.0,0.00022191,2]
[358681207,1745364636189,-500.0,0.00022191,2]
[358681208,1745364636199,-1197.45,0.00022191,2]
[358681209,1745364636208,-500.0,0.00022191,2]
[358681210,1745364636218,-500.0,0.00022191,2]
[358681211,1745364636228,-500.0,0.00022191,2]
[358681212,1745364636238,-500.0,0.00022191,2]
[358681213,1745364636249,-500.0,0.00022191,2]
[358681214,1745364636258,-787.51,0.00022191,2]
[358681215,1745364636268,-500.0,0.00022191,2]
[358681216,1745364636279,-500.0,0.00022191,2]
[358681217,1745364636288,-500.0,0.00022191,2]
[358681218,1745364636299,-509.01,0.00022191,2]
[358681219,1745364636310,-500.0,0.00022191,2]
[358681220,1745364636319,-500.0,0.00022191,2]
[358681221,1745364636329,-270.75,0.00022191,2]
[358681222,1745364636338,-605.59,0.00022191,2]
[358681223,1745364636349,-500.0,0.00022191,2]
[358681224,1745364636359,-500.0,0.00022191,2]
[358681225,1745364636368,-500.0,0.00022191,2]
[358681226,1745364636378,-500.0,0.00022191,2]
[358681227,1745364636387,-500.0,0.00022191,2]
[358681228,1745364636397,-500.0,0.00022191,2]
[358681229,1745364636407,-500.0,0.00022191,2]
[358681230,1745364636416,-500.0,0.00022191,2]
[358681231,1745364636426,-500.0,0.00022191,2]
[358681232,1745364636436,-500.0,0.00022191,2]
[358681233,1745364636445,-500.0,0.00022191,2]
[358681234,1745364636455,-643.91,0.00022191,2]
[358681235,1745364636464,-318.55255064,0.00022374,2]
[358681236,1745364636476,-192.75301968,0.00022374,2]
[358681237,1745364636486,-314.96871592,0.00022374,2]
[358681238,1745364636496,-500.0,0.00022374,2]
[358681239,1745364636506,-160.0,0.00022375,2]
[358681240,1745364636517,-420.73667954,0.00022375,2]
[358681241,1745364636526,-12570.97479393,0.00022375,2]
[358681242,1745364636536,-160.0,0.00022375,2]
[358681243,1745364636546,-160.0,0.00022375,2]
[358681244,1745364636556,-729.16666667,0.00022375,2]
[358681245,1745364636566,-160.0,0.00022375,2]
[358681246,1745364636575,-160.0,0.00022375,2]
[358681247,1745364636585,-160.0,0.00022375,2]
[358681248,1745364636594,-160.0,0.00022375,2]
[358681249,1745364636604,-500.0,0.00022465,2]
[358681250,1745364636614,-500.0,0.00022465,2]
[358681251,1745364636624,-500.0,0.00022465,2]
[358681252,1745364636634,-500.0,0.00022465,2]
[358681253,1745364636643,-500.0,0.00022465,2]
[358681254,1745364636655,-500.0,0.00022465,2]
[358681255,1745364636665,-514.516685,0.00022465,2]
[358681256,1745364636674,-1197.45,0.00022465,2]
[358681257,1745364636684,-500.0,0.00022465,2]
[358681258,1745364636694,-787.51,0.00022465,2]
[358681259,1745364636704,-500.0,0.00022465,2]
[358681260,1745364636714,-500.0,0.00022465,2]
[358681261,1745364636724,-500.0,0.00022465,2]
[358681262,1745364636734,-509.01,0.00022465,2]
[358681263,1745364636744,-266.63647079,0.00022465,2]
[358681264,1745364636755,-500.0,0.00022465,2]
[358681265,1745364636764,-500.0,0.00022465,2]
[358681266,1745364636775,-500.0,0.00022465,2]
[358681267,1745364636785,-643.91,0.00022465,2]
[358681268,1745364636795,-300.0,0.00022567,2]
[358681269,1745364636804,-500.0,0.00022567,2]
[358681270,1745364636814,-500.0,0.00022567,2]
[358681271,1745364636823,-859.70045393,0.00022571,2]
[358681272,1745364636833,-500.0,0.00022575,2]
[358681273,1745364636843,-1716.62361362,0.0002259,4]
[358681274,1745364636853,-500.0,0.00022671,2]
[358681275,1745364636862,-500.0,0.00022671,2]
[358681276,1745364636872,-500.0,0.00022671,2]
[358681277,1745364637006,-500.0,0.00022671,2]
[358681278,1745364637032,-500.0,0.00022671,2]
[358681279,1745364637043,-420.0,0.00022724,2]
[358681280,1745364637053,-282.0,0.00022724,2]
[358681281,1745364637064,-497.78565677,0.00022739,2]
[358681282,1745364637075,-500.0,0.00022739,2]
[358681283,1745364637085,-500.0,0.00022739,2]
[358681284,1745364637097,-1197.45,0.00022739,2]
[358681285,1745364637108,-500.0,0.00022739,2]
[358681286,1745364637118,-787.51,0.00022739,2]
[358681287,1745364637128,-500.0,0.00022739,2]
[358681288,1745364637138,-500.0,0.00022739,2]
[358681289,1745364637148,-326.60752011,0.00022739,2]
[358681290,1745364637159,-509.01,0.00022739,2]
[358681291,1745364637168,-198.52392113,0.00022739,2]
[358681292,1745364637178,-500.0,0.00022739,2]
[358681293,1745364637189,-500.0,0.00022739,2]
[358681294,1745364637198,-643.91,0.00022739,2]
[358681295,1745364637208,-503.34520186,0.0002294,2]
[358681296,1745364637218,-151.0,0.00023013,7]
[358681297,1745364637228,-566.09,0.00023013,2]
[358681298,1745364637237,-500.0,0.00023013,2]
[358681299,1745364637247,-1197.45,0.00023013,2]
[358681300,1745364637256,-500.0,0.00023013,2]
[358681301,1745364637265,-787.51,0.00023013,2]
[358681302,1745364637275,-500.0,0.00023013,2]
[358681303,1745364637285,-500.0,0.00023013,2]
[358681304,1745364637295,-509.01,0.00023013,2]
[358681305,1745364637305,-500.0,0.00023013,2]
[358681306,1745364637315,-500.0,0.00023013,2]
[358681307,1745364637325,-643.91,0.00023013,2]
[358681308,1745364637335,-2335.04,0.00023277,3]
[358681309,1745364637345,-1167.52,0.00023277,3]
[358681310,1745364637354,-583.76,0.00023277,3]
[358681311,1745364637364,-1716.62361362,0.00023279,4]
[358681312,1745364637374,-500.0,0.00023287,2]
[358681313,1745364637384,-1197.45,0.00023287,2]
[358681314,1745364637393,-500.0,0.00023287,2]
[358681315,1745364637405,-787.51,0.00023287,2]
[358681316,1745364637415,-500.0,0.00023287,2]
[358681317,1745364637424,-500.0,0.00023287,2]
[358681318,1745364637434,-509.01,0.00023287,2]
[358681319,1745364637444,-500.0,0.00023287,2]
[358681320,1745364637453,-500.0,0.00023287,2]
[358681321,1745364637462,-643.91,0.00023287,2]
[358681322,1745364637474,-859.70045393,0.00023324,2]
[358681323,1745364637485,-500.0,0.00023561,2]
[358681324,1745364637495,-1197.45,0.00023561,2]
[358681325,1745364637504,-500.0,0.00023561,2]
[358681326,1745364637515,-787.51,0.00023561,2]
[358681327,1745364637525,-500.0,0.00023561,2]
[358681328,1745364637534,-500.0,0.00023561,2]
[358681329,1745364637544,-509.01,0.00023561,2]
[358681330,1745364637554,-500.0,0.00023561,2]
[358681331,1745364637566,-500.0,0.00023561,2]
[358681332,1745364637575,-643.91,0.00023561,2]
[358681333,1745364637585,-179.55961179,0.00023629,2]
[358681334,1745364637594,-500.0,0.00023835,2]
[358681335,1745364637604,-1197.45,0.00023835,2]
[358681336,1745364637613,-500.0,0.00023835,2]
[358681337,1745364637623,-787.51,0.00023835,2]
[358681338,1745364637633,-500.0,0.00023835,2]
[358681339,1745364637643,-500.0,0.00023835,2]
[358681340,1745364637653,-509.01,0.00023835,2]
[358681341,1745364637663,-500.0,0.00023835,2]
[358681342,1745364637672,-500.0,0.00023835,2]
[358681343,1745364637682,-643.91,0.00023835,2]
[358681344,1745364637691,-1716.62361362,0.00023969,5]
[358681345,1745364637702,-2163.08540871,0.00024,2]
[358681346,1745364637712,-859.70045393,0.00024078,2]
[358681347,1745364637721,-500.0,0.00024109,2]
[358681348,1745364637732,-1197.45,0.00024109,2]
[358681349,1745364637742,-500.0,0.00024109,2]
[358681350,1745364637752,-787.51,0.00024109,2]
[358681351,1745364637762,-500.0,0.00024109,2]
[358681352,1745364637772,-500.0,0.00024109,2]
[358681353,1745364637783,-509.01,0.00024109,2]
[358681354,1745364637793,-500.0,0.00024109,2]
[358681355,1745364637803,-500.0,0.00024109,2]
[358681356,1745364637813,-643.91,0.00024109,2]
[358681357,1745364637823,-600.0,0.00024211,2]
[358681358,1745364637832,-500.0,0.00024273,2]
[358681359,1745364637842,-500.0,0.00024273,2]
[358681360,1745364637851,-500.0,0.00024273,2]
[358681361,1745364637861,-507.07174263,0.00024273,2]
[358681362,1745364637871,-500.0,0.00024273,2]
[358681363,1745364637881,-500.0,0.00024273,2]
[358681364,1745364637890,-501.1063021,0.00024273,2]
[358681365,1745364637900,-500.0,0.00024273,2]
[358681366,1745364637911,-500.0,0.00024273,2]
[358681367,1745364637921,-204855.54912191,0.00024283,2]
[358681368,1745364638024,-3314.29308636,0.00024283,2]
[358681369,1745364638037,-1602.98272845,0.00024283,2]
[358681370,1745364638049,-303.09553512,0.00024283,2]
[358681371,1745364638060,-6333.67103448,0.00024283,2]
[358681372,1745364638072,-2571.72505793,0.00024283,2]
[358681373,1745364638085,-2750.0,0.00024283,2]
[358681374,1745364638097,-4450.0,0.00024283,2]
[358681420,1745364638982,-500.0,0.00022374,2]
[358681421,1745364638992,-273.68627905,0.00022374,2]
[358681422,1745364639002,-38498.5671406,0.00024283,2]
[358681423,1745364639014,-105320.11629515,0.00024283,2]
[358681424,1745364639023,-500.0,0.00024383,2]
[358681425,1745364639033,-500.0,0.00024383,2]
[358681426,1745364639043,-787.51,0.00024383,2]
[358681427,1745364639053,-500.0,0.00024383,2]
[358681428,1745364639062,-500.0,0.00024383,2]
[358681429,1745364639071,-509.01,0.00024383,2]
[358681430,1745364639081,-500.0,0.00024383,2]
[358681431,1745364639090,-500.0,0.00024383,2]
[358681432,1745364639099,-50.02008127,0.00024383,2]
[358681433,1745364639111,-593.88991873,0.00024383,2]
[358681434,1745364639120,-153.0,0.0002463,2]
[358681435,1745364639130,-153.0,0.0002463,2]
[358681436,1745364639140,-153.0,0.0002463,2]
[358681437,1745364639149,-153.0,0.0002463,2]
[358681438,1745364639161,-153.0,0.0002463,2]
[358681439,1745364639171,-153.0,0.0002463,2]
[358681440,1745364639181,-153.0,0.0002463,2]
[358681441,1745364639190,-153.0,0.0002463,2]
[358681442,1745364639200,-500.0,0.00024657,2]
[358681443,1745364639210,-500.0,0.00024657,2]
[358681444,1745364639219,-787.51,0.00024657,2]
[358681445,1745364639229,-500.0,0.00024657,2]
[358681446,1745364639238,-500.0,0.00024657,2]
[358681447,1745364639248,-509.01,0.00024657,2]
[358681448,1745364639257,-500.0,0.00024657,2]
[358681449,1745364639267,-500.0,0.00024657,2]
[358681450,1745364639276,-643.91,0.00024657,2]
[358681451,1745364639286,-1029.34807668,0.00024659,5]
[358681452,1745364639298,-687.27553694,0.00024659,5]
[358681453,1745364639307,-587.0,0.00024722,2]
[358681454,1745364639317,-859.70045393,0.00024831,2]
[358681455,1745364639326,-182.38825673,0.00024873,2]
[358681472,1745364641036,-120.82411561,0.00024873,2]
[358681473,1745364641047,-500.0,0.00024873,2]
[358681474,1745364641057,-151.0,0.000249,7]
[358681475,1745364641067,-970.92044607,0.000249,2]
[358681476,1745364641082,-412.03639997,0.000249,2]
[358681477,1745364641095,-216970.77308896,0.000249,2]
[358681478,1745364641104,-151.0,0.000249,7]
[358681479,1745364641114,-420.130944,0.000249,2]
[358681480,1745364641123,-420.130944,0.000249,2]
[358681481,1745364641133,-151.0,0.000249,7]
[358681482,1745364641143,-290.66,0.00024931,2]
[358681483,1745364641152,-500.0,0.00024931,2]
[358681484,1745364641164,-787.51,0.00024931,2]
[358681485,1745364641174,-500.0,0.00024931,2]
[358681486,1745364641183,-500.0,0.00024931,2]
[358681488,1745364641192,-509.01,0.00024931,2]
[358681490,1745364641202,-500.0,0.00024931,2]
[358681491,1745364641211,-500.0,0.00024931,2]
[358681493,1745364641220,-643.91,0.00024931,2]
[358681495,1745364641230,-151.0,0.00025,2]
[358681496,1745364641239,-16807.2857026,0.00025,2]
[358681497,1745364641249,-151.0,0.00025204,7]
[358681498,1745364641259,-199.100014,0.00025205,7]
[358681499,1745364641268,-151.0,0.00025205,7]
[358681500,1745364641277,-500.0,0.00025205,2]
[358681501,1745364641287,-787.51,0.00025205,2]
[358681502,1745364641296,-500.0,0.00025205,2]
[358681503,1745364641305,-261.00988554,0.00025205,2]
[358681504,1745364641314,-509.01,0.00025205,2]
[358681505,1745364641324,-500.0,0.00025205,2]
[358681506,1745364641333,-500.0,0.00025205,2]
[358681507,1745364641343,-643.91,0.00025205,2]
[358681508,1745364641352,-1716.62361362,0.00025348,6]
[358681509,1745364641361,-176.743284,0.00025468,7]
[358681510,1745364641371,-500.0,0.00025479,2]
[358681511,1745364641380,-787.51,0.00025479,2]
[358681512,1745364641389,-500.0,0.00025479,2]
[358681513,1745364641399,-509.01,0.00025479,2]
[358681514,1745364641408,-500.0,0.00025479,2]
[358681515,1745364641419,-500.0,0.00025479,2]
[358681516,1745364641429,-643.91,0.00025479,2]
[358681517,1745364641438,-500.0,0.00025753,2]
[358681518,1745364641447,-787.51,0.00025753,2]
[358681519,1745364641458,-500.0,0.00025753,2]
[358681520,1745364641469,-509.01,0.00025753,2]
[358681521,1745364641480,-500.0,0.00025753,2]
[358681522,1745364641490,-500.0,0.00025753,2]
[358681523,1745364641500,-643.91,0.00025753,2]
[358681524,1745364641511,-900.0,0.00025854,2]
[358681525,1745364641521,-500.0,0.00026027,2]
[358681526,1745364641531,-787.51,0.00026027,2]
[358681527,1745364641679,-500.0,0.00026027,2]
[358681528,1745364641689,-509.01,0.00026027,2]
[358681529,1745364641699,-500.0,0.00026027,2]
[358681530,1745364641709,-500.0,0.00026027,2]
[358681531,1745364641718,-643.91,0.00026027,2]
[358681532,1745364641728,-1716.62361362,0.00026038,6]
[358681533,1745364641738,-500.0,0.00026117,2]
[358681534,1745364641748,-205.6722982,0.00026117,2]
[358681535,1745364641758,-500.0,0.00026117,2]
[358681536,1745364641768,-548.70368773,0.00026117,2]
[358681537,1745364641778,-500.0,0.00026117,2]
[358681538,1745364641788,-505.15048638,0.00026117,2]
[358681539,1745364641799,-505.83778537,0.00026117,2]
[358681540,1745364641808,-500.0,0.00026117,2]
[358681541,1745364641818,-500.0,0.00026117,2]
[358681542,1745364641828,-500.0,0.00026117,2]
[358681543,1745364641837,-500.0,0.00026301,2]
[358681544,1745364641848,-787.51,0.00026301,2]
[358681545,1745364641857,-329.71558691,0.00026301,2]
[358681546,1745364641867,-509.01,0.00026301,2]
[358681547,1745364641877,-500.0,0.00026301,2]
[358681548,1745364641887,-500.0,0.00026301,2]
[358681549,1745364641897,-643.91,0.00026301,2]
[358681550,1745364641906,-500.0,0.00026321,2]
[358681551,1745364641918,-500.0,0.00026321,2]
[358681552,1745364641928,-500.0,0.00026321,2]
[358681553,1745364641937,-500.0,0.00026321,2]
[358681554,1745364641947,-500.0,0.00026321,2]
[358681555,1745364641957,-500.0,0.00026321,2]
[358681556,1745364641967,-500.0,0.00026361,2]
[358681557,1745364641976,-500.0,0.00026575,2]
[358681558,1745364641986,-787.51,0.00026575,2]
[358681559,1745364641996,-509.01,0.00026575,2]
[358681560,1745364642007,-500.0,0.00026575,2]
[358681561,1745364642016,-500.0,0.00026575,2]
[358681562,1745364642026,-643.91,0.00026575,2]
[358681563,1745364642035,-668.633,0.00026638,14]
[358681564,1745364642045,-1716.62361362,0.00026728,6]
[358681565,1745364642055,-500.0,0.00026849,2]
[358681566,1745364642064,-787.51,0.00026849,2]
[358681567,1745364642074,-487.90043039,0.00026849,2]
[358681593,1745364643808,-21.10956961,0.00026849,2]
[358681595,1745364643818,-500.0,0.00026849,2]
[358681596,1745364643827,-500.0,0.00026849,2]
[358681599,1745364643837,-643.91,0.00026849,2]
[358681602,1745364643847,-823.0,0.00026895,2]
[358681605,1745364643857,-506.85,0.00027,2]
[358681607,1745364643867,-250.56799713,0.00027106,2]
[358681609,1745364643876,-500.0,0.00027123,2]
[358681611,1745364643886,-787.51,0.00027123,2]
[358681614,1745364643896,-509.01,0.00027123,2]
[358681615,1745364643906,-500.0,0.00027123,2]
[358681616,1745364643917,-337.29448784,0.00027123,2]
[358681618,1745364643927,-643.91,0.00027123,2]
[358681619,1745364643937,-500.0,0.00027123,2]
[358681620,1745364643946,-500.0,0.00027241,2]
[358681621,1745364643956,-500.0,0.00027241,2]
[358681622,1745364643966,-440.78794542,0.00027241,2]
[358681623,1745364643979,-59.21205458,0.00027241,2]
[358681624,1745364643990,-180.14231243,0.00027364,2]
[358681625,1745364644000,-500.0,0.00027397,2]
[358681626,1745364644010,-787.51,0.00027397,2]
[358681627,1745364644020,-509.01,0.00027397,2]
[358681628,1745364644030,-500.0,0.00027397,2]
[358681629,1745364644040,-569.90858819,0.00027397,2]
[358681638,1745364646509,-74.00141181,0.00027397,2]
[358681639,1745364646521,-171.4698888,0.00027397,120]
[358681640,1745364646530,-500.0,0.00027397,5]
[358681641,1745364646540,-1979.24065893,0.000274,3]
[358681642,1745364646552,-151.0,0.000274,17]
[358681643,1745364646562,-729.16666667,0.000274,3]
[358681644,1745364646571,-160.0,0.000274,3]
[358681645,1745364646582,-12570.97479393,0.000274,3]
[358681646,1745364646593,-151.0,0.000274,7]
[358681647,1745364646603,-420.73667954,0.000274,3]
[358681648,1745364646614,-160.0,0.000274,3]
[358681649,1745364646625,-151.0,0.000274,7]
[358681650,1745364646635,-151.0,0.000274,7]
[358681651,1745364646645,-174.7434727,0.00027407,30]
[358681652,1745364646658,-174.7434727,0.00027407,30]
[358681653,1745364646670,-1716.62361362,0.00027417,7]
[358681654,1745364646679,-318.0,0.00027451,3]
[358681655,1745364646689,-151.0,0.00027451,7]
[358681656,1745364646698,-420.130944,0.00027452,2]
[358681657,1745364646708,-420.130944,0.00027452,2]
[358681658,1745364646717,-500.0,0.00027452,5]
[358681659,1745364646727,-1000.0,0.00027452,5]
[358681660,1745364646736,-300.0,0.00027498,5]
[358681661,1745364646745,-85.98510477,0.00027534,4]
[358681906,1745365832984,-1000.0,0.00020414,2]